fUSD/lending_fUSD_20260617
["ID","MTS","AMOUNT","RATE_DAILY","PERIOD"]
[425293517,1781656245000,-500.0,0.00022519,2]
[425293520,1781656245000,-151.0,0.00022519,2]
[425293521,1781656245000,-500.0,0.00022519,2]
[425293522,1781656245000,-500.0,0.00022519,2]
[425293523,1781656245000,-152.0,0.00022519,2]
[425293518,1781656245000,-500.0,0.00022519,2]
[425293524,1781656245000,-151.0,0.00022519,2]
[425293525,1781656245000,-500.0,0.00022519,2]
[425293527,1781656245000,-152.0,0.00022519,2]
[425293534,1781656245000,-500.0,0.00022519,2]
[425293550,1781656245000,-151.0,0.00022519,2]
[425293587,1781656245000,-150.0,0.00023664,2]
[425293556,1781656245000,-151.0,0.00022574,2]
[425293576,1781656245000,-151.0,0.00023014,2]
[425293569,1781656245000,-155.0,0.00023,2]
[425293573,1781656245000,-174.0,0.00023,2]
[425293572,1781656245000,-805.0,0.00023,2]
[425293577,1781656245000,-2005.9555727,0.00023067,2]
[425293580,1781656245000,-151.0,0.00023179,2]
[425293581,1781656245000,-500.0,0.0002326,2]
[425293582,1781656245000,-405.0,0.00023315,2]
[425293578,1781656245000,-151.0,0.00023069,2]
[425293583,1781656245000,-1525.95537935,0.00023539,2]
[425293585,1781656245000,-711.0,0.000236,2]
[425293589,1781656245000,-349.0,0.00024,2]
[425293586,1781656245000,-2080.17592889,0.00023615,2]
[425293584,1781656245000,-310.0,0.000236,2]
[425293588,1781656245000,-5107.55728415,0.00023964,2]
[425293590,1781656245000,-155.0,0.00024,2]
[425293549,1781656245000,-500.0,0.00022519,2]
[425293575,1781656245000,-1121.0,0.00023,2]
[425293574,1781656245000,-741.0,0.00023,2]
[425293579,1781656245000,-151.0,0.00023124,2]
[425293570,1781656245000,-186.0,0.00023,2]
[425293551,1781656245000,-151.0,0.00022519,2]
[425293571,1781656245000,-548.0,0.00023,2]
[425293557,1781656245000,-158.02015883,0.00022629,2]
[425293558,1781656245000,-151.0,0.00022629,2]
[425293560,1781656245000,-166.66,0.00022695,30]
[425293559,1781656245000,-151.0,0.00022684,2]
[425293552,1781656245000,-151.0,0.00022519,2]
[425293554,1781656245000,-500.0,0.00022568,2]
[425293555,1781656245000,-158.02015882,0.00022574,2]
[425293553,1781656245000,-381.58,0.00022557,2]
[425293563,1781656245000,-151.0,0.00022794,2]
[425293562,1781656245000,-150.0,0.00022754,2]
[425293567,1781656245000,-477.25936227,0.00022964,2]
[425293564,1781656245000,-151.0,0.00022849,2]
[425293565,1781656245000,-151.0,0.00022904,2]
[425293566,1781656245000,-151.0,0.00022959,2]
[425293568,1781656245000,-349.0,0.00023,2]
[425293561,1781656245000,-151.0,0.00022739,2]
[425293622,1781656246000,-921.0,0.00024931,5]
[425293620,1781656246000,-349.46918583,0.000249,2]
[425293616,1781656246000,-1060.96,0.00024887,7]
[425293613,1781656246000,-101737.8332543,0.00024871,2]
[425293615,1781656246000,-1120.46,0.00024887,7]
[425293617,1781656246000,-152.0,0.00024892,7]
[425293619,1781656246000,-200.0,0.000249,2]
[425293618,1781656246000,-200.0,0.000249,2]
[425293630,1781656246000,-352.0,0.00025,2]
[425293623,1781656246000,-250.0,0.00024932,6]
[425293624,1781656246000,-250.0,0.00024932,6]
[425293628,1781656246000,-326.0,0.00025,3]
[425293626,1781656246000,-500.0,0.00024999,2]
[425293629,1781656246000,-232.53023337,0.00025,2]
[425293627,1781656246000,-164976.37390577,0.00025,2]
[425293631,1781656246000,-158.0,0.00025,2]
[425293614,1781656246000,-5738.6098553,0.00024871,2]
[425293621,1781656246000,-200.0,0.000249,2]
[425293611,1781656246000,-36387.3309922,0.00024866,2]
[425293593,1781656246000,-805.0,0.00024,2]
[425293612,1781656246000,-1057.5520756,0.00024871,2]
[425293591,1781656246000,-186.0,0.00024,2]
[425293633,1781656246000,-554.0,0.00025,2]
[425293595,1781656246000,-741.0,0.00024,2]
[425293592,1781656246000,-548.0,0.00024,2]
[425293594,1781656246000,-174.0,0.00024,2]
[425293596,1781656246000,-150.0,0.00024,2]
[425293599,1781656246000,-756.03,0.00024162,7]
[425293601,1781656246000,-1093.78,0.00024162,7]
[425293598,1781656246000,-573.42,0.00024031,2]
[425293600,1781656246000,-1155.11,0.00024162,7]
[425293597,1781656246000,-1121.0,0.00024,2]
[425293602,1781656246000,-2157.14243826,0.00024163,2]
[425293603,1781656246000,-150.0,0.00024384,2]
[425293604,1781656246000,-207.06706599,0.00024558,2]
[425293605,1781656246000,-200.0,0.00024563,2]
[425293609,1781656246000,-150.0,0.00024802,2]
[425293607,1781656246000,-1000.0,0.00024658,2]
[425293610,1781656246000,-228.0,0.00024806,2]
[425293608,1781656246000,-2236.95670847,0.00024711,2]
[425293606,1781656246000,-186.61,0.00024658,2]
[425293634,1781656246000,-815.0,0.00025,2]
[425293625,1781656246000,-250.0,0.00024932,6]
[425293636,1781656246000,-186.0,0.00025,2]
[425293658,1781656246000,-532.0,0.00025535,10]
[425293660,1781656246000,-299.0,0.00025595,2]
[425293663,1781656246000,-200.0,0.00025654,2]
[425293662,1781656246000,-1028.15,0.00025612,7]
[425293661,1781656246000,-1085.81,0.00025612,7]
[425293664,1781656246000,-200.0,0.00025654,2]
[425293665,1781656246000,-150.0,0.00025754,2]
[425293666,1781656246000,-207.06706599,0.00025774,2]
[425293667,1781656246000,-502.58,0.00025786,2]
[425293668,1781656246000,-893.93,0.00025786,2]
[425293673,1781656246000,-175.0,0.0002594,2]
[425293670,1781656246000,-173.0,0.0002589,7]
[425293672,1781656246000,-200.0,0.00025911,2]
[425293671,1781656246000,-200.0,0.00025911,2]
[425293674,1781656246000,-27490.47687194,0.00026,10]
[425293676,1781656246000,-152.0,0.00026038,3]
[425293677,1781656246000,-173.46020999,0.0002611,14]
[425293675,1781656246000,-545.76936185,0.00026032,7]
[425293635,1781656246000,-1019.0,0.00025,2]
[425293659,1781656246000,-299.0,0.00025595,2]
[425293657,1781656246000,-200.0,0.000254,2]
[425293669,1781656246000,-2405.55389863,0.00025807,2]
[425293653,1781656246000,-2319.72410669,0.00025259,2]
[425293637,1781656246000,-195.042,0.00025,12]
[425293656,1781656246000,-200.0,0.000254,2]
[425293638,1781656246000,-757.0,0.00025,2]
[425293632,1781656246000,-192.0,0.00025,2]
[425293639,1781656246000,-173.0,0.00025,7]
[425293640,1781656246000,-1129.0,0.00025,2]
[425293641,1781656246000,-347.53,0.00025,2]
[425293644,1781656246000,-200.0,0.00025149,2]
[425293648,1781656246000,-251.60795357,0.00025188,2]
[425293645,1781656246000,-200.0,0.00025149,2]
[425293642,1781656246000,-347.53,0.00025,2]
[425293647,1781656246000,-207.06706599,0.00025166,2]
[425293646,1781656246000,-200.0,0.00025149,2]
[425293643,1781656246000,-347.53,0.00025,2]
[425293650,1781656246000,-151.0,0.00025258,2]
[425293649,1781656246000,-350.02,0.00025212,2]
[425293652,1781656246000,-695.39793187,0.00025258,2]
[425293655,1781656246000,-675.28994232,0.00025397,2]
[425293654,1781656246000,-270.72007013,0.00025397,2]
[425293651,1781656246000,-599.60298507,0.00025258,2]
[425293713,1781656247000,-155.69392008,0.00026919,2]
[425293717,1781656247000,-150.03836454,0.00027006,2]
[425293716,1781656247000,-487.674079,0.00027,2]
[425293715,1781656247000,-207.06706599,0.0002699,2]
[425293706,1781656247000,-173.05383907,0.00026706,2]
[425293708,1781656247000,-200.339764,0.000268,2]
[425293705,1781656247000,-306.00437132,0.0002661,14]
[425293704,1781656247000,-995.34,0.00026578,7]
[425293714,1781656247000,-152.0,0.00026928,4]
[425293711,1781656247000,-2586.85809042,0.00026903,2]
[425293718,1781656247000,-174.90709986,0.00027006,7]
[425293726,1781656247000,-182.71773477,0.00027006,7]
[425293719,1781656247000,-186.08975034,0.00027006,7]
[425293729,1781656247000,-150.78489644,0.00027044,7]
[425293728,1781656247000,-500.0,0.00027036,2]
[425293721,1781656247000,-177.59941696,0.00027006,7]
[425293723,1781656247000,-170.14365356,0.00027006,7]
[425293724,1781656247000,-188.43458088,0.00027006,7]
[425293722,1781656247000,-176.75785323,0.00027006,7]
[425293727,1781656247000,-167.62616003,0.00027006,7]
[425293725,1781656247000,-176.09073818,0.00027006,7]
[425293702,1781656247000,-300.0,0.00026572,7]
[425293720,1781656247000,-175.12953622,0.00027006,7]
[425293701,1781656247000,-396.19,0.00026526,2]
[425293681,1781656247000,-251.60795357,0.00026249,14]
[425293703,1781656247000,-1051.16,0.00026578,7]
[425293734,1781656247000,-151.89984537,0.00027044,7]
[425293679,1781656247000,-537.30183512,0.00026222,2]
[425293678,1781656247000,-511.98488052,0.00026154,2]
[425293680,1781656247000,-785.88154255,0.0002624,7]
[425293685,1781656247000,-151.0,0.00026296,2]
[425293684,1781656247000,-299.0,0.0002628,2]
[425293682,1781656247000,-614.21086901,0.00026255,7]
[425293683,1781656247000,-840.13653656,0.0002628,7]
[425293686,1781656247000,-511.98488052,0.00026298,2]
[425293687,1781656247000,-511.98488052,0.00026307,2]
[425293695,1781656247000,-675.28994232,0.00026397,2]
[425293691,1781656247000,-831.502431,0.00026384,2]
[425293689,1781656247000,-207.06706599,0.00026382,2]
[425293688,1781656247000,-2494.55939288,0.00026355,2]
[425293690,1781656247000,-831.502431,0.00026384,2]
[425293694,1781656247000,-270.72007013,0.00026397,2]
[425293696,1781656247000,-340.7273972,0.00026397,2]
[425293692,1781656247000,-831.502431,0.00026384,2]
[425293697,1781656247000,-302.01161666,0.00026397,2]
[425293693,1781656247000,-831.502431,0.00026384,2]
[425293699,1781656247000,-396.21,0.00026525,2]
[425293700,1781656247000,-396.19,0.00026526,2]
[425293698,1781656247000,-511.98488052,0.00026406,2]
[425293707,1781656247000,-352.20580619,0.00026714,2]
[425293731,1781656247000,-150.89656207,0.00027044,7]
[425293709,1781656247000,-200.0,0.000269,9]
[425293732,1781656247000,-170.74230965,0.00027044,7]
[425293763,1781656247000,-1500.0,0.00027241,2]
[425293765,1781656247000,-353.1511517,0.0002727,2]
[425293768,1781656247000,-376.8390851,0.00027273,2]
[425293771,1781656247000,-218.78735957,0.00027273,2]
[425293766,1781656247000,-150.0,0.0002727,2]
[425293770,1781656247000,-500.0,0.00027273,2]
[425293769,1781656247000,-150.0,0.00027273,2]
[425293762,1781656247000,-1500.0,0.00027241,2]
[425293772,1781656247000,-500.0,0.00027275,2]
[425293767,1781656247000,-500.0,0.00027273,2]
[425293773,1781656247000,-500.0,0.00027275,2]
[425293776,1781656247000,-500.0,0.00027307,2]
[425293775,1781656247000,-500.0,0.00027307,2]
[425293779,1781656247000,-150.0,0.00027307,2]
[425293786,1781656247000,-347.53,0.00027338,2]
[425293777,1781656247000,-500.0,0.00027307,2]
[425293778,1781656247000,-445.58996959,0.00027307,2]
[425293780,1781656247000,-500.0,0.00027317,2]
[425293783,1781656247000,-500.0,0.00027317,2]
[425293784,1781656247000,-500.0,0.00027317,2]
[425293782,1781656247000,-500.0,0.00027317,2]
[425293781,1781656247000,-500.0,0.00027317,2]
[425293733,1781656247000,-172.00793113,0.00027044,7]
[425293764,1781656247000,-1500.0,0.00027241,2]
[425293760,1781656247000,-175.0,0.00027185,7]
[425293774,1781656247000,-466.91297872,0.00027275,2]
[425293758,1781656247000,-150.0,0.00027124,2]
[425293759,1781656247000,-602.0,0.00027137,2]
[425293730,1781656247000,-169.32685587,0.00027044,7]
[425293740,1781656247000,-159.93239706,0.00027045,7]
[425293737,1781656247000,-170.39842751,0.00027044,7]
[425293739,1781656247000,-171.79114555,0.00027044,7]
[425293738,1781656247000,-163.09931353,0.00027044,7]
[425293743,1781656247000,-150.39469418,0.00027045,7]
[425293744,1781656247000,-161.89143207,0.00027045,7]
[425293742,1781656247000,-164.50722621,0.00027045,7]
[425293745,1781656247000,-163.48514685,0.00027045,7]
[425293748,1781656247000,-150.0,0.00027099,7]
[425293747,1781656247000,-175.0,0.00027078,5]
[425293741,1781656247000,-153.26336052,0.00027045,7]
[425293761,1781656247000,-1500.0,0.00027241,2]
[425293749,1781656247000,-150.0,0.00027099,7]
[425293750,1781656247000,-150.00000001,0.00027099,7]
[425293754,1781656247000,-457.76423857,0.0002711,14]
[425293785,1781656247000,-493.69995655,0.00027317,2]
[425293751,1781656247000,-150.0,0.00027099,7]
[425293752,1781656247000,-150.0,0.00027099,7]
[425293755,1781656247000,-619.3638,0.0002711,14]
[425293753,1781656247000,-150.0,0.00027099,7]
[425293757,1781656247000,-354.0,0.00027123,2]
[425293756,1781656247000,-1414.0,0.00027123,2]
[425293746,1781656247000,-206.41011612,0.00027045,7]
[425293818,1781656248000,-864.92,0.00027397,2]
[425293824,1781656248000,-864.92,0.00027397,2]
[425293820,1781656248000,-864.92,0.00027397,2]
[425293827,1781656248000,-865.03153067,0.00027397,2]
[425293813,1781656248000,-864.92,0.00027397,2]
[425293821,1781656248000,-864.92,0.00027397,2]
[425293817,1781656248000,-864.92,0.00027397,2]
[425293822,1781656248000,-864.92,0.00027397,2]
[425293816,1781656248000,-864.92,0.00027397,2]
[425293823,1781656248000,-864.92,0.00027397,2]
[425293825,1781656248000,-864.92,0.00027397,2]
[425293819,1781656248000,-864.92,0.00027397,2]
[425293834,1781656248000,-500.0,0.00027397,2]
[425293829,1781656248000,-410.16198758,0.00027397,2]
[425293828,1781656248000,-500.0,0.00027397,2]
[425293831,1781656248000,-193.49530374,0.00027397,7]
[425293830,1781656248000,-773.98121498,0.00027397,7]
[425293832,1781656248000,-180.48004675,0.00027397,7]
[425293837,1781656248000,-300.0,0.00027397,2]
[425293835,1781656248000,-500.0,0.00027397,2]
[425293833,1781656248000,-450.19329488,0.00027397,7]
[425293836,1781656248000,-300.0,0.00027397,2]
[425293839,1781656248000,-300.0,0.00027397,2]
[425293850,1781656248000,-500.0,0.00027397,2]
[425293826,1781656248000,-864.92,0.00027397,2]
[425293812,1781656248000,-864.92,0.00027397,2]
[425293789,1781656248000,-1077.0,0.00027369,5]
[425293815,1781656248000,-864.92,0.00027397,2]
[425293849,1781656248000,-500.0,0.00027397,2]
[425293793,1781656248000,-500.0,0.00027397,2]
[425293787,1781656248000,-482.14,0.00027347,2]
[425293792,1781656248000,-500.28796441,0.00027397,2]
[425293791,1781656248000,-500.0,0.00027396,2]
[425293790,1781656248000,-4533.68641657,0.0002739,7]
[425293795,1781656248000,-500.0,0.00027397,2]
[425293788,1781656248000,-396.19,0.00027348,2]
[425293796,1781656248000,-500.0,0.00027397,2]
[425293794,1781656248000,-500.0,0.00027397,2]
[425293798,1781656248000,-490.8325641,0.00027397,2]
[425293797,1781656248000,-500.0,0.00027397,2]
[425293806,1781656248000,-864.92,0.00027397,2]
[425293802,1781656248000,-500.0,0.00027397,2]
[425293803,1781656248000,-353.76355088,0.00027397,2]
[425293804,1781656248000,-864.92,0.00027397,2]
[425293799,1781656248000,-500.0,0.00027397,2]
[425293805,1781656248000,-864.92,0.00027397,2]
[425293801,1781656248000,-500.0,0.00027397,2]
[425293800,1781656248000,-500.0,0.00027397,2]
[425293808,1781656248000,-864.92,0.00027397,2]
[425293807,1781656248000,-864.92,0.00027397,2]
[425293810,1781656248000,-864.92,0.00027397,2]
[425293809,1781656248000,-864.92,0.00027397,2]
[425293811,1781656248000,-864.92,0.00027397,2]
[425293814,1781656248000,-864.92,0.00027397,2]
[425293841,1781656248000,-300.0,0.00027397,2]
[425293840,1781656248000,-300.0,0.00027397,2]
[425293894,1781656248000,-1000.0,0.00027397,2]
[425293870,1781656248000,-500.0,0.00027397,15]
[425293873,1781656248000,-1000.0,0.00027397,2]
[425293871,1781656248000,-502.58377949,0.00027397,15]
[425293877,1781656248000,-1000.0,0.00027397,2]
[425293876,1781656248000,-1000.0,0.00027397,2]
[425293878,1781656248000,-1000.0,0.00027397,2]
[425293886,1781656248000,-1000.0,0.00027397,2]
[425293887,1781656248000,-1000.0,0.00027397,2]
[425293882,1781656248000,-1000.0,0.00027397,2]
[425293880,1781656248000,-1000.0,0.00027397,2]
[425293879,1781656248000,-1000.0,0.00027397,2]
[425293883,1781656248000,-1000.0,0.00027397,2]
[425293884,1781656248000,-1000.0,0.00027397,2]
[425293881,1781656248000,-1000.0,0.00027397,2]
[425293885,1781656248000,-1000.0,0.00027397,2]
[425293890,1781656248000,-1000.0,0.00027397,2]
[425293889,1781656248000,-1000.0,0.00027397,2]
[425293892,1781656248000,-1000.0,0.00027397,2]
[425293891,1781656248000,-1000.0,0.00027397,2]
[425293893,1781656248000,-1000.0,0.00027397,2]
[425293895,1781656248000,-1000.0,0.00027397,2]
[425293838,1781656248000,-300.0,0.00027397,2]
[425293898,1781656248000,-1000.0,0.00027397,2]
[425293896,1781656248000,-1000.0,0.00027397,2]
[425293897,1781656248000,-1000.0,0.00027397,2]
[425293867,1781656248000,-500.0,0.00027397,15]
[425293872,1781656248000,-1000.0,0.00027397,2]
[425293888,1781656248000,-1000.0,0.00027397,2]
[425293866,1781656248000,-500.0,0.00027397,15]
[425293842,1781656248000,-300.0,0.00027397,2]
[425293843,1781656248000,-300.0,0.00027397,2]
[425293869,1781656248000,-500.0,0.00027397,15]
[425293848,1781656248000,-273.39628625,0.00027397,2]
[425293845,1781656248000,-150.0,0.00027397,2]
[425293847,1781656248000,-150.0,0.00027397,2]
[425293844,1781656248000,-175.65698095,0.00027397,2]
[425293851,1781656248000,-500.0,0.00027397,2]
[425293856,1781656248000,-500.0,0.00027397,2]
[425293855,1781656248000,-500.0,0.00027397,2]
[425293852,1781656248000,-500.0,0.00027397,2]
[425293853,1781656248000,-500.0,0.00027397,2]
[425293859,1781656248000,-500.0,0.00027397,2]
[425293846,1781656248000,-150.0,0.00027397,2]
[425293854,1781656248000,-500.0,0.00027397,2]
[425293858,1781656248000,-500.0,0.00027397,2]
[425293865,1781656248000,-150.0,0.00027397,2]
[425293875,1781656248000,-1000.0,0.00027397,2]
[425293863,1781656248000,-500.0,0.00027397,2]
[425293874,1781656248000,-1000.0,0.00027397,2]
[425293868,1781656248000,-500.0,0.00027397,15]
[425293862,1781656248000,-500.0,0.00027397,2]
[425293861,1781656248000,-500.0,0.00027397,2]
[425293857,1781656248000,-500.0,0.00027397,2]
[425293860,1781656248000,-500.0,0.00027397,2]
[425293864,1781656248000,-351.89825629,0.00027397,2]
[425293944,1781656249000,-1000.0,0.00027397,2]
[425293929,1781656249000,-1000.0,0.00027397,2]
[425293930,1781656249000,-1000.0,0.00027397,2]
[425293928,1781656249000,-1000.0,0.00027397,2]
[425293925,1781656249000,-1000.0,0.00027397,2]
[425293931,1781656249000,-1000.0,0.00027397,2]
[425293924,1781656249000,-1000.0,0.00027397,2]
[425293933,1781656249000,-1000.0,0.00027397,2]
[425293935,1781656249000,-1000.0,0.00027397,2]
[425293943,1781656249000,-1000.0,0.00027397,2]
[425293940,1781656249000,-1000.0,0.00027397,2]
[425293942,1781656249000,-1000.0,0.00027397,2]
[425293936,1781656249000,-1000.0,0.00027397,2]
[425293938,1781656249000,-1000.0,0.00027397,2]
[425293937,1781656249000,-1000.0,0.00027397,2]
[425293941,1781656249000,-1000.0,0.00027397,2]
[425293939,1781656249000,-1000.0,0.00027397,2]
[425293945,1781656249000,-1000.0,0.00027397,2]
[425293956,1781656249000,-1000.0,0.00027397,2]
[425293954,1781656249000,-1000.0,0.00027397,2]
[425293927,1781656249000,-1000.0,0.00027397,2]
[425293934,1781656249000,-1000.0,0.00027397,2]
[425293932,1781656249000,-1000.0,0.00027397,2]
[425293949,1781656249000,-1000.0,0.00027397,2]
[425293919,1781656249000,-1000.0,0.00027397,2]
[425293900,1781656249000,-1000.0,0.00027397,2]
[425293899,1781656249000,-1000.0,0.00027397,2]
[425293906,1781656249000,-1000.0,0.00027397,2]
[425293908,1781656249000,-1000.0,0.00027397,2]
[425293901,1781656249000,-1000.0,0.00027397,2]
[425293903,1781656249000,-1000.0,0.00027397,2]
[425293905,1781656249000,-1000.0,0.00027397,2]
[425293904,1781656249000,-1000.0,0.00027397,2]
[425293902,1781656249000,-1000.0,0.00027397,2]
[425293910,1781656249000,-1000.0,0.00027397,2]
[425293909,1781656249000,-1000.0,0.00027397,2]
[425293907,1781656249000,-1000.0,0.00027397,2]
[425293912,1781656249000,-1000.0,0.00027397,2]
[425293911,1781656249000,-1000.0,0.00027397,2]
[425293913,1781656249000,-1000.0,0.00027397,2]
[425293922,1781656249000,-1000.0,0.00027397,2]
[425293921,1781656249000,-1000.0,0.00027397,2]
[425293914,1781656249000,-1000.0,0.00027397,2]
[425293915,1781656249000,-1000.0,0.00027397,2]
[425293918,1781656249000,-1000.0,0.00027397,2]
[425293917,1781656249000,-428.2386209,0.00027397,2]
[425293916,1781656249000,-1000.0,0.00027397,2]
[425293920,1781656249000,-1000.0,0.00027397,2]
[425293923,1781656249000,-1000.0,0.00027397,2]
[425293955,1781656249000,-1000.0,0.00027397,2]
[425293926,1781656249000,-1000.0,0.00027397,2]
[425293947,1781656249000,-1000.0,0.00027397,2]
[425293980,1781656249000,-1275.729008,0.00027397,2]
[425293982,1781656249000,-1275.729008,0.00027397,2]
[425293981,1781656249000,-1275.729008,0.00027397,2]
[425293987,1781656249000,-532.901942,0.00027397,2]
[425293988,1781656249000,-151.0,0.00027397,2]
[425293983,1781656249000,-186.61,0.00027397,2]
[425293984,1781656249000,-532.901942,0.00027397,2]
[425293986,1781656249000,-532.901942,0.00027397,2]
[425293985,1781656249000,-532.901942,0.00027397,2]
[425293998,1781656249000,-151.0,0.00027397,2]
[425293978,1781656249000,-876.603178,0.00027397,2]
[425293990,1781656249000,-399.656603,0.00027397,2]
[425294000,1781656249000,-8239.43721498,0.00027397,10]
[425293999,1781656249000,-151.0,0.00027397,2]
[425293989,1781656249000,-254.13826,0.00027397,2]
[425293994,1781656249000,-399.656603,0.00027397,2]
[425293995,1781656249000,-399.656603,0.00027397,2]
[425293996,1781656249000,-399.656603,0.00027397,2]
[425293997,1781656249000,-399.656603,0.00027397,2]
[425293992,1781656249000,-399.656603,0.00027397,2]
[425293993,1781656249000,-399.656603,0.00027397,2]
[425293952,1781656249000,-1000.0,0.00027397,2]
[425293991,1781656249000,-399.656603,0.00027397,2]
[425293979,1781656249000,-1275.729008,0.00027397,2]
[425293974,1781656249000,-553.75738984,0.00027397,2]
[425293962,1781656249000,-1000.0,0.00027397,2]
[425293950,1781656249000,-1000.0,0.00027397,2]
[425293946,1781656249000,-1000.0,0.00027397,2]
[425293951,1781656249000,-1000.0,0.00027397,2]
[425293958,1781656249000,-1000.0,0.00027397,2]
[425293957,1781656249000,-1000.0,0.00027397,2]
[425293960,1781656249000,-1000.0,0.00027397,2]
[425293959,1781656249000,-1000.0,0.00027397,2]
[425293961,1781656249000,-1000.0,0.00027397,2]
[425293964,1781656249000,-1000.0,0.00027397,2]
[425293967,1781656249000,-1000.0,0.00027397,2]
[425293953,1781656249000,-1000.0,0.00027397,2]
[425293966,1781656249000,-1000.0,0.00027397,2]
[425293965,1781656249000,-1000.0,0.00027397,2]
[425293968,1781656249000,-1000.0,0.00027397,2]
[425293969,1781656249000,-1000.0,0.00027397,2]
[425293973,1781656249000,-1500.0,0.00027397,2]
[425293976,1781656249000,-876.603178,0.00027397,2]
[425293970,1781656249000,-1000.0,0.00027397,2]
[425293971,1781656249000,-1000.0,0.00027397,2]
[425293975,1781656249000,-876.603178,0.00027397,2]
[425293972,1781656249000,-1000.0,0.00027397,2]
[425293977,1781656249000,-876.603178,0.00027397,2]
[425293963,1781656249000,-1000.0,0.00027397,2]
[425293948,1781656249000,-1000.0,0.00027397,2]
[425294003,1781656251000,-915.61368565,0.00027397,10]
[425294001,1781656251000,-4164.87933335,0.00027397,10]
[425294005,1781656251000,-1095.71466048,0.00027397,10]
[425294004,1781656251000,-12043.71712775,0.00027397,10]
[425294002,1781656251000,-1119.03263827,0.00027397,10]
[425294015,1781656252000,-40.89527848,0.000274,2]
[425294013,1781656252000,-2741.41,0.000274,7]
[425294014,1781656252000,-3849.29,0.000274,2]
[425294010,1781656252000,-450.19329488,0.00027397,7]
[425294012,1781656252000,-1944.57,0.000274,7]
[425294011,1781656252000,-1001.15965791,0.000274,7]
[425294016,1781656252000,-2812.72883893,0.000274,2]
[425294009,1781656252000,-180.48004675,0.00027397,7]
[425294007,1781656252000,-20973.18533952,0.00027397,10]
[425294008,1781656252000,-164.51314574,0.00027397,7]
[425294006,1781656252000,-181.0,0.0002,2]
[425294041,1781656835000,3160.1247098,0.00030136,120]
[425294043,1781656930000,500.0,0.00028879,120]
[425294042,1781656930000,500.0,0.00027999,120]
[425294044,1781656931000,500.0,0.00028879,120]
[425294045,1781656931000,500.0,0.00028899,120]
[425294048,1781656932000,500.0,0.00029899,120]
[425294047,1781656932000,500.0,0.0002918,120]
[425294046,1781656932000,500.0,0.00028989,120]
[425294049,1781656933000,360.35213621,0.00029899,120]
[425294067,1781657432000,-151.0,0.00016036,2]
[425294070,1781657432000,-152.0,0.00016036,2]
[425294069,1781657432000,-151.0,0.00016036,2]
[425294071,1781657432000,-95.49808287,0.00016036,2]
[425294072,1781657432000,-55.50191713,0.00016036,2]
[425294075,1781657432000,-151.0,0.00016036,2]
[425294068,1781657432000,-152.0,0.00016036,2]
[425294076,1781657432000,-151.0,0.00016036,2]
[425294078,1781657432000,-151.0,0.00016036,2]
[425294080,1781657432000,-151.0,0.00016036,2]
[425294073,1781657432000,-150.0,0.00016036,2]
[425294066,1781657432000,-150.0,0.00016036,2]
[425294055,1781657432000,-250.0,0.00015946,2]
[425294064,1781657432000,-151.0,0.00016036,2]
[425294065,1781657432000,-153.0,0.00016036,2]
[425294063,1781657432000,-152.0,0.00016036,2]
[425294062,1781657432000,-150.0,0.00016036,2]